[Event "Vezerkepzo GM Christmas 2021"]
[Site "Budapest"]
[Date "2022.01.04"]
[Round "9.3"]
[White "Leszko, Bence"]
[Black "Sahithi Varshini M"]
[Result "1/2-1/2"]
[ECO "A13"]
[WhiteElo "2253"]
[BlackElo "2216"]
[Annotator "ChessBase"]
[PlyCount "68"]
[EventDate "2021.12.26"]
[EventCountry "HUN"]
[SourceTitle "playchess.com"]
[Source "ChessBase"]
[SourceQuality "1"]
[TimeControl "40/5400+30:1800+30"]

1. Nf3 {[%emt 0:27:11]} Nf6 {[%emt 0:00:17]} 2. c4 {[%emt 0:00:08]} e6 {[%emt 0:00:17]} 3. g3 {[%emt 0:00:18]} d5 {[%emt 0:01:01]} 4. Bg2 {[%emt 0:00:27]} c6 {[%emt 0:01:04]} 5. O-O {[%emt 0:00:25]} Bd6 {[%emt 0:00:02]} 6. b3 {[%emt 0:00:34]} Nbd7 {[%emt 0:00:08]} 7. Bb2 {[%emt 0:00:09]} O-O {[%emt 0:01:11]} 8. d3 {[%emt 0:00:05]} Qe7 {[%emt 0:02:55]} 9. Qc2 {[%emt 0:00:26]} Re8 {[%emt 0:02:16]} 10. cxd5 {[%emt 0:01:14]} exd5 {[%emt 0:00:22]} 11. Re1 {[%emt 0:00:16]} Ne5 {[%emt 0:02:16]} 12. Nbd2 {[%emt 0:00:12]} Qc7 {[%emt 0:07:50]} 13. e4 {[%emt 0:00:58]} dxe4 {[%emt 0:05:53]} 14. dxe4 {[%emt 0:00:09]} Nfd7 {[%emt 0:03:09]} 15. Nd4 {[%emt 0:00:35]} Nc5 {[%emt 0:01:15]} 16. Bc3 {[%emt 0:03:16]} a5 {[%emt 0:00:41]} 17. f4 {[%emt 0:01:04]} Ned3 {[%emt 0:01:14]} 18. Re3 {[%emt 0:01:28]} Nb4 {[%emt 0:04:07]} 19. Qd1 {[%emt 0:02:47]} Nd5 {[%emt 0:02:31]} 20. Rf3 {[%emt 0:14:02]} Nxe4 {[%emt 0:00:04]} 21. Nxe4 {[%emt 0:00:17]} Rxe4 {[%emt 0:00:03]} 22. Rd3 {[%emt 0:03:37]} Nxc3 {[%emt 0:00:39]} 23. Rxc3 {[%emt 0:00:02]} Re7 {[%emt 0:00:02]} 24. Nxc6 {[%emt 0:04:09]} bxc6 {[%emt 0:07:26]} 25. Rxc6 {[%emt 0:00:12]} Qa7+ {[%emt 0:00:02]} 26. Kh1 {[%emt 0:00:07]} Bc7 {[%emt 0:00:03]} 27. Rxc7 {[%emt 0:01:50]} Qxc7 {[%emt 0:00:02]} 28. Bxa8 {[%emt 0:00:14]} Bb7+ {[%emt 0:57:40]} 29. Bxb7 {[%emt 0:38:48]} Qxb7+ {[%emt 0:00:30]} 30. Kg1 {[%emt 0:00:30]} Qb6+ {[%emt 0:00:30]} 31. Kg2 {[%emt 0:00:30]} Qc6+ {[%emt 0:00:30]} 32. Kg1 {[%emt 0:00:30]} Qb6+ {[%emt 0:00:30]} 33. Kg2 {[%emt 0:00:30]} Qc6+ {[%emt 0:00:30]} 34. Kg1 {[%emt 0:00:30]} Qb6+ {[%emt 0:00:30]} 1/2-1/2